[Event "January 9 Early 2024"]
[Site "https://www.chess.com"]
[Date "2024.01.11"]
[Round "4"]
[White "Nouali, Mohamed"]
[Black "Ovezdurdyyeva, Jemal"]
[Result "0-1"]
[Board "285"]
[TimeControl "180+1"]
[WhiteFideId "5502462"]
[BlackFideId "14001888"]
[WhiteElo "2584"]
[BlackElo "2458"]
[WhiteTeam "TUN"]
[BlackTeam "TKM"]
[WhiteClock "0:00:06"]
[BlackClock "0:00:10"]

1. e4 {[%clk 0:03:00]}  d6 {[%clk 0:02:59]} 2. d4 {[%clk 0:03:00]}  Nf6 {[%clk 0:02:59]} 3. Nc3 {[%clk 0:03:01]}  g6 {[%clk 0:02:59]} 4. Bg5 {[%clk 0:03:01]}  Bg7 {[%clk 0:02:59]} 5. e5 {[%clk 0:03:01]}  Nfd7 {[%clk 0:02:55]} 6. e6 {[%clk 0:03:00]}  fxe6 {[%clk 0:02:54]} 7. Nf3 {[%clk 0:03:00]}  O-O {[%clk 0:02:53]} 8. h4 {[%clk 0:03:00]}  Nf6 {[%clk 0:02:48]} 9. Bd3 {[%clk 0:02:55]}  Qe8 {[%clk 0:02:29]} 10. Qe2 {[%clk 0:02:43]}  Nc6 {[%clk 0:02:22]} 11. O-O-O {[%clk 0:02:34]}  Nb4 {[%clk 0:02:09]} 12. Bc4 {[%clk 0:02:34]}  d5 {[%clk 0:01:55]} 13. Bb3 {[%clk 0:02:30]}  a5 {[%clk 0:01:45]} 14. a4 {[%clk 0:01:33]}  c6 {[%clk 0:01:17]} 15. Ne5 {[%clk 0:01:26]}  Nd7 {[%clk 0:01:13]} 16. h5 {[%clk 0:01:12]}  Nxe5 {[%clk 0:01:12]} 17. dxe5 {[%clk 0:01:11]}  Bd7 {[%clk 0:01:06]} 18. f4 {[%clk 0:00:36]}  b5 {[%clk 0:01:00]} 19. g4 {[%clk 0:00:35]}  bxa4 {[%clk 0:00:35]} 20. Nxa4 {[%clk 0:00:23]}  c5 {[%clk 0:00:35]} 21. hxg6 {[%clk 0:00:23]}  Bxa4 {[%clk 0:00:26]} 22. Rxh7 {[%clk 0:00:21]}  Bxb3 {[%clk 0:00:23]} 23. Rdh1 {[%clk 0:00:12]}  Qxg6 {[%clk 0:00:15]} 24. cxb3 {[%clk 0:00:04]}  Nd3+ {[%clk 0:00:14]} 25. Kd2 {[%clk 0:00:03]}  Nxf4 {[%clk 0:00:15]} 26. Qh2 {[%clk 0:00:03]}  Qd3+ {[%clk 0:00:05]} 27. Ke1 {[%clk 0:00:03]}  Qb1+ {[%clk 0:00:04]} 28. Kd2 {[%clk 0:00:03]}  Qxb2+ {[%clk 0:00:04]} 29. Kd1 {[%clk 0:00:03]}  Qxh2 {[%clk 0:00:03]} 30. R7xh2 {[%clk 0:00:03]}  Ng6 {[%clk 0:00:04]} 31. Rh6 {[%clk 0:00:03]}  Nxe5 {[%clk 0:00:03]} 32. R6h5 {[%clk 0:00:02]}  Ng6 {[%clk 0:00:03]} 33. Bd2 {[%clk 0:00:02]}  a4 {[%clk 0:00:02]} 34. Rg5 {[%clk 0:00:02]}  Rf6 {[%clk 0:00:02]} 35. bxa4 {[%clk 0:00:01]}  Rxa4 {[%clk 0:00:03]} 36. Kc2 {[%clk 0:00:02]}  Ra2+ {[%clk 0:00:03]} 37. Kd1 {[%clk 0:00:01]}  Ra1+ {[%clk 0:00:02]} 38. Kc2 {[%clk 0:00:01]}  Rxh1 {[%clk 0:00:02]} 39. Rh5 {[%clk 0:00:02]}  Rxh5 {[%clk 0:00:02]} 40. gxh5 {[%clk 0:00:02]}  Nf4 {[%clk 0:00:03]} 41. h6 {[%clk 0:00:02]}  Bxh6 {[%clk 0:00:03]} 42. Kb1 {[%clk 0:00:02]}  Kf7 {[%clk 0:00:04]} 43. Bxf4 {[%clk 0:00:02]}  Bxf4 {[%clk 0:00:04]} 44. Ka2 {[%clk 0:00:02]}  Kg6 {[%clk 0:00:04]} 45. Kb1 {[%clk 0:00:02]}  Kf5 {[%clk 0:00:05]} 46. Kc2 {[%clk 0:00:03]}  Ke4 {[%clk 0:00:06]} 47. Kb1 {[%clk 0:00:03]}  c4 {[%clk 0:00:07]} 48. Ka2 {[%clk 0:00:04]}  Kd4 {[%clk 0:00:08]} 49. Kb1 {[%clk 0:00:05]}  Be5 {[%clk 0:00:09]} 50. Ka2 {[%clk 0:00:05]}  Rf3 {[%clk 0:00:09]} 51. Kb1 {[%clk 0:00:06]}  Bd6 {[%clk 0:00:10]} 0-1

[Event "January 9 Early 2024"]
[Site "https://www.chess.com"]
[Date "2024.01.11"]
[Round "4"]
[White "Tulchynskyi, Feliks"]
[Black "Krzywda, Andrzej"]
[Result "1-0"]
[Board "286"]
[TimeControl "180+1"]
[WhiteFideId "34127895"]
[BlackFideId "1114565"]
[WhiteElo "2561"]
[BlackElo "2388"]
[WhiteTeam "UKR"]
[BlackTeam "POL"]
[WhiteClock "0:00:11"]
[BlackClock "0:00:02"]

1. c4 {[%clk 0:03:00]}  e6 {[%clk 0:02:59]} 2. Nc3 {[%clk 0:03:00]}  d5 {[%clk 0:02:59]} 3. d4 {[%clk 0:03:00]}  Nf6 {[%clk 0:02:57]} 4. cxd5 {[%clk 0:03:00]}  exd5 {[%clk 0:02:57]} 5. Bg5 {[%clk 0:03:00]}  c6 {[%clk 0:02:57]} 6. e3 {[%clk 0:03:00]}  h6 {[%clk 0:02:58]} 7. Bh4 {[%clk 0:02:59]}  Be7 {[%clk 0:02:58]} 8. Bd3 {[%clk 0:02:59]}  O-O {[%clk 0:02:58]} 9. Qc2 {[%clk 0:02:59]}  Re8 {[%clk 0:02:58]} 10. h3 {[%clk 0:03:00]}  Ne4 {[%clk 0:02:38]} 11. Bxe7 {[%clk 0:02:58]}  Qxe7 {[%clk 0:02:39]} 12. Bxe4 {[%clk 0:02:59]}  dxe4 {[%clk 0:02:39]} 13. Nge2 {[%clk 0:03:00]}  Nd7 {[%clk 0:02:37]} 14. Ng3 {[%clk 0:02:56]}  Nf6 {[%clk 0:02:35]} 15. Rb1 {[%clk 0:02:55]}  h5 {[%clk 0:02:30]} 16. b4 {[%clk 0:02:50]}  h4 {[%clk 0:02:30]} 17. Nge2 {[%clk 0:02:51]}  Bf5 {[%clk 0:02:25]} 18. O-O {[%clk 0:02:44]}  a6 {[%clk 0:02:23]} 19. a4 {[%clk 0:02:43]}  b5 {[%clk 0:02:21]} 20. Rfc1 {[%clk 0:02:36]}  Rac8 {[%clk 0:02:19]} 21. Qb2 {[%clk 0:02:21]}  Qd7 {[%clk 0:02:12]} 22. Kh2 {[%clk 0:02:12]}  g5 {[%clk 0:02:05]} 23. Nd1 {[%clk 0:02:04]}  Nd5 {[%clk 0:01:53]} 24. Rc5 {[%clk 0:01:57]}  Re6 {[%clk 0:01:48]} 25. Ndc3 {[%clk 0:01:51]}  Ne7 {[%clk 0:01:15]} 26. Rc1 {[%clk 0:01:43]}  Kh7 {[%clk 0:01:09]} 27. axb5 {[%clk 0:01:27]}  axb5 {[%clk 0:01:09]} 28. d5 {[%clk 0:01:26]}  cxd5 {[%clk 0:00:50]} 29. Rxc8 {[%clk 0:01:26]}  Nxc8 {[%clk 0:00:51]} 30. Nd4 {[%clk 0:01:23]}  Rf6 {[%clk 0:00:48]} 31. Ncxb5 {[%clk 0:01:21]}  Bg6 {[%clk 0:00:43]} 32. Rc7 {[%clk 0:01:17]}  Qe8 {[%clk 0:00:43]} 33. Kg1 {[%clk 0:01:14]}  Nb6 {[%clk 0:00:39]} 34. Nc6 {[%clk 0:01:11]}  Rxc6 {[%clk 0:00:35]} 35. Rxc6 {[%clk 0:01:06]}  Qxc6 {[%clk 0:00:35]} 36. Nd4 {[%clk 0:01:06]}  Qc4 {[%clk 0:00:32]} 37. b5 {[%clk 0:01:06]}  f6 {[%clk 0:00:28]} 38. Qa3 {[%clk 0:01:04]}  Qc7 {[%clk 0:00:25]} 39. Qf8 {[%clk 0:00:58]}  Qf7 {[%clk 0:00:23]} 40. Qd8 {[%clk 0:00:54]}  Nc4 {[%clk 0:00:17]} 41. Nc6 {[%clk 0:00:47]}  f5 {[%clk 0:00:09]} 42. Nb4 {[%clk 0:00:33]}  Kh6 {[%clk 0:00:05]} 43. Nxd5 {[%clk 0:00:32]}  f4 {[%clk 0:00:05]} 44. Qh8+ {[%clk 0:00:25]}  Bh7 {[%clk 0:00:04]} 45. Qd4 {[%clk 0:00:25]}  fxe3 {[%clk 0:00:04]} 46. fxe3 {[%clk 0:00:23]}  Nd6 {[%clk 0:00:04]} 47. Nc3 {[%clk 0:00:20]}  Nf5 {[%clk 0:00:04]} 48. Qb6+ {[%clk 0:00:14]}  Kg7 {[%clk 0:00:03]} 49. Nxe4 {[%clk 0:00:11]}  Ng3 {[%clk 0:00:04]} 50. Qd4+ {[%clk 0:00:10]}  Kh6 {[%clk 0:00:03]} 51. Nxg3 {[%clk 0:00:10]}  hxg3 {[%clk 0:00:03]} 52. Qd6+ {[%clk 0:00:11]}  Kg7 {[%clk 0:00:03]} 53. Qxg3 {[%clk 0:00:10]}  Qb3 {[%clk 0:00:02]} 54. Qe5+ {[%clk 0:00:10]}  Kg8 {[%clk 0:00:02]} 55. Qxg5+ {[%clk 0:00:10]}  Kf8 {[%clk 0:00:02]} 56. Kh2 {[%clk 0:00:10]}  Qd3 {[%clk 0:00:01]} 57. Qf4+ {[%clk 0:00:09]}  Ke7 {[%clk 0:00:01]} 58. Qe5+ {[%clk 0:00:08]}  Kf7 {[%clk 0:00:01]} 59. b6 {[%clk 0:00:08]}  Qb3 {[%clk 0:00:01]} 60. Qc7+ {[%clk 0:00:07]}  Kg6 {[%clk 0:00:01]} 61. b7 {[%clk 0:00:08]}  Kh6 {[%clk 0:00:01]} 62. b8=Q {[%clk 0:00:08]}  Qxb8 {[%clk 0:00:01]} 63. Qxb8 {[%clk 0:00:09]}  Bg6 {[%clk 0:00:02]} 64. Qf4+ {[%clk 0:00:09]}  Kh5 {[%clk 0:00:02]} 65. h4 {[%clk 0:00:10]}  Bf5 {[%clk 0:00:02]} 66. Qg5# {[%clk 0:00:11]} 1-0

[Event "January 9 Early 2024"]
[Site "https://www.chess.com"]
[Date "2024.01.11"]
[Round "4"]
[White "Stojanovski, Sandi"]
[Black "Carre, Sylvain"]
[Result "1-0"]
[Board "287"]
[TimeControl "180+1"]
[WhiteFideId "1403249"]
[BlackFideId "642118"]
[WhiteElo "2561"]
[BlackElo "2369"]
[WhiteTeam "DEN"]
[BlackTeam "FRA"]
[WhiteClock "0:00:09"]
[BlackClock "0:00:07"]

1. d3 {[%clk 0:03:00]}  d5 {[%clk 0:02:59]} 2. Nf3 {[%clk 0:03:01]}  Nf6 {[%clk 0:03:00]} 3. g3 {[%clk 0:03:02]}  Bf5 {[%clk 0:03:00]} 4. Bg2 {[%clk 0:03:02]}  c6 {[%clk 0:03:01]} 5. O-O {[%clk 0:03:03]}  h6 {[%clk 0:03:01]} 6. c4 {[%clk 0:03:03]}  e6 {[%clk 0:03:02]} 7. cxd5 {[%clk 0:03:04]}  exd5 {[%clk 0:03:02]} 8. Nc3 {[%clk 0:03:05]}  Be7 {[%clk 0:03:02]} 9. e4 {[%clk 0:03:05]}  dxe4 {[%clk 0:03:02]} 10. dxe4 {[%clk 0:03:06]}  Qxd1 {[%clk 0:03:00]} 11. Rxd1 {[%clk 0:03:06]}  Nxe4 {[%clk 0:02:59]} 12. Nd4 {[%clk 0:02:58]}  Nxc3 {[%clk 0:02:52]} 13. bxc3 {[%clk 0:02:59]}  Bd7 {[%clk 0:02:36]} 14. Re1 {[%clk 0:02:57]}  Kd8 {[%clk 0:02:25]} 15. Rb1 {[%clk 0:02:55]}  b6 {[%clk 0:02:10]} 16. Bf4 {[%clk 0:02:54]}  Bc5 {[%clk 0:01:50]} 17. Rbd1 {[%clk 0:02:45]}  Re8 {[%clk 0:01:27]} 18. Rxe8+ {[%clk 0:02:19]}  Kxe8 {[%clk 0:01:27]} 19. Nb5 {[%clk 0:02:07]}  Na6 {[%clk 0:01:17]} 20. Bd6 {[%clk 0:01:49]}  Bxd6 {[%clk 0:01:05]} 21. Rxd6 {[%clk 0:01:31]}  Ke7 {[%clk 0:01:03]} 22. Bxc6 {[%clk 0:01:10]}  Bxc6 {[%clk 0:00:45]} 23. Rxc6 {[%clk 0:01:10]}  Kd7 {[%clk 0:00:40]} 24. Rd6+ {[%clk 0:01:05]}  Ke7 {[%clk 0:00:39]} 25. Rd4 {[%clk 0:00:56]}  Nc5 {[%clk 0:00:37]} 26. Kf1 {[%clk 0:00:52]}  a6 {[%clk 0:00:34]} 27. Nc7 {[%clk 0:00:50]}  Rd8 {[%clk 0:00:32]} 28. Nd5+ {[%clk 0:00:49]}  Kf8 {[%clk 0:00:29]} 29. Nxb6 {[%clk 0:00:49]}  Rb8 {[%clk 0:00:24]} 30. Nc4 {[%clk 0:00:41]}  Rb1+ {[%clk 0:00:22]} 31. Kg2 {[%clk 0:00:40]}  Ne6 {[%clk 0:00:20]} 32. Rd6 {[%clk 0:00:37]}  Rc1 {[%clk 0:00:20]} 33. Rxa6 {[%clk 0:00:36]}  Rxc3 {[%clk 0:00:21]} 34. Ne5 {[%clk 0:00:34]}  Ng5 {[%clk 0:00:12]} 35. Ra8+ {[%clk 0:00:26]}  Ke7 {[%clk 0:00:12]} 36. h4 {[%clk 0:00:26]}  Ne4 {[%clk 0:00:11]} 37. Ra7+ {[%clk 0:00:26]}  Ke6 {[%clk 0:00:12]} 38. Nxf7 {[%clk 0:00:14]}  Rc2 {[%clk 0:00:12]} 39. Nd8+ {[%clk 0:00:14]}  Kd5 {[%clk 0:00:10]} 40. Rd7+ {[%clk 0:00:13]}  Ke5 {[%clk 0:00:07]} 41. Rf7 {[%clk 0:00:13]}  Rxa2 {[%clk 0:00:06]} 42. Nc6+ {[%clk 0:00:12]}  Ke6 {[%clk 0:00:04]} 43. Rf4 {[%clk 0:00:13]}  Nf6 {[%clk 0:00:04]} 44. Nd4+ {[%clk 0:00:12]}  Ke5 {[%clk 0:00:03]} 45. Nf5 {[%clk 0:00:11]}  Rb2 {[%clk 0:00:03]} 46. Nxg7 {[%clk 0:00:10]}  Nd5 {[%clk 0:00:03]} 47. Rf5+ {[%clk 0:00:09]}  Kd4 {[%clk 0:00:04]} 48. Rf3 {[%clk 0:00:10]}  Ra2 {[%clk 0:00:04]} 49. Nf5+ {[%clk 0:00:11]}  Kc5 {[%clk 0:00:04]} 50. Nxh6 {[%clk 0:00:12]}  Nb4 {[%clk 0:00:04]} 51. Ng4 {[%clk 0:00:12]}  Nc2 {[%clk 0:00:05]} 52. Kh3 {[%clk 0:00:10]}  Ne1 {[%clk 0:00:05]} 53. Rf5+ {[%clk 0:00:09]}  Kd4 {[%clk 0:00:05]} 54. h5 {[%clk 0:00:10]}  Nd3 {[%clk 0:00:06]} 55. h6 {[%clk 0:00:09]}  Ra1 {[%clk 0:00:05]} 56. Kh4 {[%clk 0:00:08]}  Rh1+ {[%clk 0:00:04]} 57. Kg5 {[%clk 0:00:09]}  Kc4 {[%clk 0:00:04]} 58. Kg6 {[%clk 0:00:06]}  Nc5 {[%clk 0:00:04]} 59. h7 {[%clk 0:00:06]}  Ne6 {[%clk 0:00:04]} 60. Rf7 {[%clk 0:00:04]}  Kd5 {[%clk 0:00:04]} 61. Nf6+ {[%clk 0:00:03]}  Kd6 {[%clk 0:00:04]} 62. Ng4 {[%clk 0:00:01]}  Kd5 {[%clk 0:00:04]} 63. Rf6 {[%clk 0:00:02]}  Nd4 {[%clk 0:00:04]} 64. Rf5+ {[%clk 0:00:02]}  Nxf5 {[%clk 0:00:04]} 65. Kxf5 {[%clk 0:00:03]}  Rxh7 {[%clk 0:00:04]} 66. Nf6+ {[%clk 0:00:04]}  Kd4 {[%clk 0:00:04]} 67. Nxh7 {[%clk 0:00:05]}  Kd3 {[%clk 0:00:04]} 68. g4 {[%clk 0:00:06]}  Ke2 {[%clk 0:00:05]} 69. g5 {[%clk 0:00:06]}  Kxf2 {[%clk 0:00:06]} 70. g6 {[%clk 0:00:07]}  Ke3 {[%clk 0:00:06]} 71. g7 {[%clk 0:00:08]}  Kd4 {[%clk 0:00:07]} 72. g8=Q {[%clk 0:00:09]} 1-0

[Event "January 9 Early 2024"]
[Site "https://www.chess.com"]
[Date "2024.01.11"]
[Round "4"]
[White "Tifferet, Shakked"]
[Black "Ratnesan, Ranesh"]
[Result "0-1"]
[Board "289"]
[TimeControl "180+1"]
[WhiteFideId "2811529"]
[BlackFideId "439339"]
[WhiteElo "2484"]
[BlackElo "2305"]
[WhiteTeam "ISR"]
[BlackTeam "ENG"]
[WhiteClock "0:00:12"]
[BlackClock "0:00:19"]

1. g3 {[%clk 0:03:00]}  d5 {[%clk 0:02:54]} 2. Bg2 {[%clk 0:03:00]}  Nf6 {[%clk 0:02:54]} 3. f4 {[%clk 0:03:00]}  c5 {[%clk 0:02:51]} 4. Nf3 {[%clk 0:02:59]}  Nc6 {[%clk 0:02:51]} 5. O-O {[%clk 0:02:59]}  g6 {[%clk 0:02:50]} 6. b3 {[%clk 0:02:58]}  Bg7 {[%clk 0:02:50]} 7. Bb2 {[%clk 0:02:59]}  O-O {[%clk 0:02:50]} 8. e3 {[%clk 0:02:59]}  Qc7 {[%clk 0:02:37]} 9. Na3 {[%clk 0:02:59]}  a6 {[%clk 0:02:37]} 10. Qe2 {[%clk 0:02:57]}  Rd8 {[%clk 0:02:32]} 11. Ne5 {[%clk 0:02:56]}  Be6 {[%clk 0:02:14]} 12. Nxc6 {[%clk 0:02:51]}  Qxc6 {[%clk 0:02:15]} 13. Be5 {[%clk 0:02:47]}  Bg4 {[%clk 0:02:03]} 14. Qe1 {[%clk 0:02:45]}  Qd7 {[%clk 0:02:03]} 15. d3 {[%clk 0:02:32]}  Rac8 {[%clk 0:01:59]} 16. Qd2 {[%clk 0:02:28]}  b5 {[%clk 0:01:53]} 17. Rae1 {[%clk 0:02:27]}  Bh3 {[%clk 0:01:45]} 18. Bxh3 {[%clk 0:02:27]}  Qxh3 {[%clk 0:01:46]} 19. Qg2 {[%clk 0:02:27]}  Qxg2+ {[%clk 0:01:15]} 20. Kxg2 {[%clk 0:02:28]}  d4 {[%clk 0:01:16]} 21. exd4 {[%clk 0:02:09]}  cxd4 {[%clk 0:01:17]} 22. Bxf6 {[%clk 0:02:05]}  Bxf6 {[%clk 0:01:18]} 23. Rf2 {[%clk 0:02:01]}  Rc5 {[%clk 0:01:12]} 24. Rfe2 {[%clk 0:01:46]}  Rdc8 {[%clk 0:01:10]} 25. Kf3 {[%clk 0:01:43]}  e6 {[%clk 0:01:10]} 26. h4 {[%clk 0:01:32]}  h6 {[%clk 0:01:08]} 27. Rh1 {[%clk 0:01:30]}  Kg7 {[%clk 0:01:08]} 28. Rhh2 {[%clk 0:01:29]}  Kf8 {[%clk 0:00:54]} 29. Kf2 {[%clk 0:01:20]}  R5c6 {[%clk 0:00:42]} 30. Ke1 {[%clk 0:01:18]}  Be7 {[%clk 0:00:41]} 31. Nb1 {[%clk 0:01:18]}  Bb4+ {[%clk 0:00:41]} 32. Kd1 {[%clk 0:01:18]}  Ke8 {[%clk 0:00:39]} 33. Re4 {[%clk 0:01:15]}  Bc5 {[%clk 0:00:27]} 34. Nd2 {[%clk 0:01:14]}  f5 {[%clk 0:00:19]} 35. Ree2 {[%clk 0:01:13]}  Kf7 {[%clk 0:00:15]} 36. Nf3 {[%clk 0:01:12]}  Kf6 {[%clk 0:00:15]} 37. Rh1 {[%clk 0:00:58]}  a5 {[%clk 0:00:16]} 38. Rhe1 {[%clk 0:00:56]}  a4 {[%clk 0:00:16]} 39. Ne5 {[%clk 0:00:53]}  Rd6 {[%clk 0:00:15]} 40. h5 {[%clk 0:00:48]}  g5 {[%clk 0:00:14]} 41. Nf3 {[%clk 0:00:39]}  Bb4 {[%clk 0:00:12]} 42. Rh1 {[%clk 0:00:36]}  axb3 {[%clk 0:00:12]} 43. cxb3 {[%clk 0:00:29]}  g4 {[%clk 0:00:09]} 44. Ne5 {[%clk 0:00:26]}  Ra6 {[%clk 0:00:10]} 45. Rhh2 {[%clk 0:00:23]}  Bc3 {[%clk 0:00:08]} 46. Rc2 {[%clk 0:00:21]}  Rd6 {[%clk 0:00:08]} 47. Rhe2 {[%clk 0:00:20]}  b4 {[%clk 0:00:09]} 48. Nc4 {[%clk 0:00:20]}  Rdc6 {[%clk 0:00:09]} 49. Re5 {[%clk 0:00:20]}  Rc5 {[%clk 0:00:09]} 50. Rxc5 {[%clk 0:00:19]}  Rxc5 {[%clk 0:00:10]} 51. Re2 {[%clk 0:00:19]}  Rc7 {[%clk 0:00:10]} 52. Kc2 {[%clk 0:00:17]}  Ra7 {[%clk 0:00:10]} 53. Kb1 {[%clk 0:00:17]}  Rc7 {[%clk 0:00:10]} 54. Re5 {[%clk 0:00:17]}  Ra7 {[%clk 0:00:11]} 55. Rb5 {[%clk 0:00:17]}  Be1 {[%clk 0:00:11]} 56. Rb8 {[%clk 0:00:10]}  Bxg3 {[%clk 0:00:11]} 57. Rxb4 {[%clk 0:00:10]}  Bxf4 {[%clk 0:00:11]} 58. Nb6 {[%clk 0:00:09]}  g3 {[%clk 0:00:11]} 59. Rxd4 {[%clk 0:00:07]}  g2 {[%clk 0:00:11]} 60. Rxf4 {[%clk 0:00:04]}  g1=Q+ {[%clk 0:00:12]} 61. Kb2 {[%clk 0:00:04]}  Rc7 {[%clk 0:00:12]} 62. Nc4 {[%clk 0:00:04]}  Qh2+ {[%clk 0:00:12]} 63. Rf2 {[%clk 0:00:04]}  Qxf2+ {[%clk 0:00:12]} 64. Kc3 {[%clk 0:00:04]}  Qxa2 {[%clk 0:00:10]} 65. b4 {[%clk 0:00:04]}  Qa1+ {[%clk 0:00:11]} 66. Kb3 {[%clk 0:00:04]}  Qa7 {[%clk 0:00:12]} 67. b5 {[%clk 0:00:04]}  Qc5 {[%clk 0:00:12]} 68. b6 {[%clk 0:00:04]}  Rb7 {[%clk 0:00:12]} 69. Ka4 {[%clk 0:00:04]}  Rxb6 {[%clk 0:00:12]} 70. Nxb6 {[%clk 0:00:05]}  Qxb6 {[%clk 0:00:13]} 71. d4 {[%clk 0:00:06]}  Qxd4+ {[%clk 0:00:14]} 72. Kb5 {[%clk 0:00:07]}  e5 {[%clk 0:00:14]} 73. Kc6 {[%clk 0:00:08]}  e4 {[%clk 0:00:15]} 74. Kc7 {[%clk 0:00:08]}  e3 {[%clk 0:00:16]} 75. Kc6 {[%clk 0:00:09]}  e2 {[%clk 0:00:17]} 76. Kc7 {[%clk 0:00:10]}  e1=Q {[%clk 0:00:17]} 77. Kc6 {[%clk 0:00:10]}  Qec3+ {[%clk 0:00:18]} 78. Kb7 {[%clk 0:00:11]}  Qdb4+ {[%clk 0:00:19]} 79. Ka6 {[%clk 0:00:12]}  Qca3# {[%clk 0:00:19]} 0-1

[Event "January 9 Early 2024"]
[Site "https://www.chess.com"]
[Date "2024.01.11"]
[Round "4"]
[White "Begunov, Konstantin"]
[Black "Rozum, Ivan"]
[Result "1-0"]
[Board "290"]
[TimeControl "180+1"]
[WhiteFideId "4118510"]
[BlackFideId "24104272"]
[WhiteElo "2485"]
[BlackElo "2609"]
[WhiteTeam "RUS"]
[BlackTeam "RUS"]
[WhiteClock "0:00:03"]
[BlackClock "0:00:02"]

1. d4 {[%clk 0:03:00]}  Nf6 {[%clk 0:02:57]} 2. c4 {[%clk 0:03:01]}  e6 {[%clk 0:02:57]} 3. Nf3 {[%clk 0:03:01]}  d5 {[%clk 0:02:57]} 4. Nc3 {[%clk 0:03:01]}  Bb4 {[%clk 0:02:57]} 5. Qa4+ {[%clk 0:02:55]}  Nc6 {[%clk 0:02:57]} 6. Ne5 {[%clk 0:02:56]}  O-O {[%clk 0:02:38]} 7. Nxc6 {[%clk 0:02:53]}  Bxc3+ {[%clk 0:02:38]} 8. bxc3 {[%clk 0:02:53]}  Qe8 {[%clk 0:02:36]} 9. Bg5 {[%clk 0:02:33]}  Bd7 {[%clk 0:02:26]} 10. Bxf6 {[%clk 0:02:24]}  Bxc6 {[%clk 0:02:21]} 11. Qc2 {[%clk 0:02:00]}  gxf6 {[%clk 0:02:21]} 12. cxd5 {[%clk 0:01:53]}  Bxd5 {[%clk 0:02:21]} 13. e4 {[%clk 0:01:36]}  Bc6 {[%clk 0:02:21]} 14. Be2 {[%clk 0:01:36]}  Kh8 {[%clk 0:02:19]} 15. O-O {[%clk 0:01:36]}  Rg8 {[%clk 0:02:19]} 16. Bf3 {[%clk 0:01:26]}  f5 {[%clk 0:02:15]} 17. Rfe1 {[%clk 0:01:20]}  fxe4 {[%clk 0:02:13]} 18. Bxe4 {[%clk 0:01:19]}  Bxe4 {[%clk 0:02:13]} 19. Qxe4 {[%clk 0:01:12]}  c6 {[%clk 0:02:12]} 20. Qe5+ {[%clk 0:01:11]}  Rg7 {[%clk 0:02:12]} 21. Re3 {[%clk 0:01:09]}  Qb8 {[%clk 0:02:11]} 22. Qf6 {[%clk 0:00:57]}  Qd8 {[%clk 0:02:10]} 23. Qe5 {[%clk 0:00:56]}  Qd5 {[%clk 0:02:10]} 24. g3 {[%clk 0:00:43]}  Qxe5 {[%clk 0:02:05]} 25. Rxe5 {[%clk 0:00:42]}  Rd8 {[%clk 0:01:59]} 26. Rb1 {[%clk 0:00:41]}  Rd7 {[%clk 0:01:59]} 27. a4 {[%clk 0:00:40]}  h6 {[%clk 0:01:53]} 28. Ra5 {[%clk 0:00:40]}  a6 {[%clk 0:01:47]} 29. Rh5 {[%clk 0:00:39]}  Kh7 {[%clk 0:01:46]} 30. a5 {[%clk 0:00:38]}  Rg5 {[%clk 0:01:46]} 31. Rxg5 {[%clk 0:00:26]}  hxg5 {[%clk 0:01:47]} 32. Kg2 {[%clk 0:00:18]}  Kg6 {[%clk 0:01:47]} 33. Kf3 {[%clk 0:00:17]}  f5 {[%clk 0:01:39]} 34. h4 {[%clk 0:00:16]}  Rc7 {[%clk 0:01:24]} 35. c4 {[%clk 0:00:12]}  Rd7 {[%clk 0:00:54]} 36. Ke3 {[%clk 0:00:11]}  Kh5 {[%clk 0:00:42]} 37. hxg5 {[%clk 0:00:11]}  Kxg5 {[%clk 0:00:43]} 38. Rh1 {[%clk 0:00:10]}  Kf6 {[%clk 0:00:39]} 39. Rh8 {[%clk 0:00:07]}  Rc7 {[%clk 0:00:38]} 40. Rf8+ {[%clk 0:00:07]}  Ke7 {[%clk 0:00:37]} 41. Rh8 {[%clk 0:00:07]}  Kd6 {[%clk 0:00:36]} 42. c5+ {[%clk 0:00:05]}  Kd5 {[%clk 0:00:21]} 43. Kd3 {[%clk 0:00:05]}  e5 {[%clk 0:00:12]} 44. Rd8+ {[%clk 0:00:04]}  Ke6 {[%clk 0:00:13]} 45. Re8+ {[%clk 0:00:05]}  Kf7 {[%clk 0:00:10]} 46. Rxe5 {[%clk 0:00:05]}  Kf6 {[%clk 0:00:10]} 47. Re8 {[%clk 0:00:05]}  Rh7 {[%clk 0:00:11]} 48. Rb8 {[%clk 0:00:05]}  Ke6 {[%clk 0:00:10]} 49. Kc4 {[%clk 0:00:04]}  Rf7 {[%clk 0:00:08]} 50. f3 {[%clk 0:00:05]}  Rg7 {[%clk 0:00:08]} 51. g4 {[%clk 0:00:05]}  fxg4 {[%clk 0:00:06]} 52. fxg4 {[%clk 0:00:06]}  Kf6 {[%clk 0:00:07]} 53. d5 {[%clk 0:00:05]}  Rxg4+ {[%clk 0:00:07]} 54. Kd3 {[%clk 0:00:05]}  cxd5 {[%clk 0:00:05]} 55. Rxb7 {[%clk 0:00:05]}  Ke5 {[%clk 0:00:05]} 56. Re7+ {[%clk 0:00:03]}  Kf6 {[%clk 0:00:05]} 57. Ra7 {[%clk 0:00:03]}  Ke5 {[%clk 0:00:04]} 58. Rxa6 {[%clk 0:00:04]}  Rg3+ {[%clk 0:00:05]} 59. Kd2 {[%clk 0:00:04]}  Kd4 {[%clk 0:00:05]} 60. c6 {[%clk 0:00:04]}  Rc3 {[%clk 0:00:04]} 61. Rb6 {[%clk 0:00:03]}  Ra3 {[%clk 0:00:01]} 62. a6 {[%clk 0:00:04]}  Ra2+ {[%clk 0:00:02]} 63. Kc1 {[%clk 0:00:03]}  Kc3 {[%clk 0:00:02]} 64. Kb1 {[%clk 0:00:04]}  Ra5 {[%clk 0:00:02]} 65. c7 {[%clk 0:00:03]}  Rc5 {[%clk 0:00:02]} 66. a7 {[%clk 0:00:03]} 1-0